[Event "FIDE WY-U16 Olympiad 2022"]
[Site "Nakhchivan"]
[Date "2022.10.02"]
[Round "1.1"]
[White "Daneshvar, Bardiya"]
[Black "Omonov, Asrorjon"]
[Result "1-0"]
[ECO "A13"]
[WhiteElo "2516"]
[BlackElo "2016"]
[Annotator "TA"]
[PlyCount "71"]
[EventDate "2022.10.02"]
[EventType "team-tourn"]
[EventCountry "AZE"]
[SourceTitle "playchess.com"]
[Source "ChessBase"]
[SourceQuality "1"]
[WhiteTeam "Iran"]
[BlackTeam "Uzbekistan"]
[WhiteTeamCountry "IRI"]
[BlackTeamCountry "UZB"]
[TimeControl "40/5400+30:1800+30"]

{[%evp 14,71,57,30,36,0,36,38,85,94,134,120,129,110,212,192,373,377,337,364,398,410,387,364,497,456,475,479,922,926,919,913,908,889,1119,1007,1818,1807,1926,1901,2262,2268,1873,1325,1286,1245,2390,2198,1868,1456,29987,3278,2142,1276,1109,1056,1060,1042,6318,2807]} 1. Nf3 {[%emt 0:00:03]} Nf6 {[%emt 0:00:42]} 2. c4 {[%emt 0:00:11]} e6 {[%emt 0:00:32]} 3. g3 {[%emt 0:00:17]} d5 {[%emt 0:01:42]} 4. Bg2 {[%emt 0:00:31]} dxc4 {[%emt 0:01:50]} 5. Qa4+ {[%emt 0:00:09]} Bd7 {[%emt 0:02:21]} 6. Qxc4 {[%emt 0:00:10]} Bc6 {[%emt 0:00:20]} 7. O-O {[%emt 0:01:10]} Nbd7 {[%emt 0:01:53]} 8. d4 {[%emt 0:07:05]} Be7 {[%emt 0:03:55] E02: Open Catalan: 5 Qa4+.} 9. Qc2 {[%emt 0:04:48]} O-O {[%emt 0:03:19]} (9... Be4 $5 {[%cal Re4c2]} 10. Qd1 c5 $11) 10. Nc3 {[%emt 0:00:18]} a6 {[%emt 0:11:22]} (10... Bb4 $14) 11. e4 $16 {[%emt 0:04:22][%cal Be2e4,Be4e5][%mdl 32] [#]} b5 $146 {[%emt 0:34:43] [#]} ({Predecessor:} 11... Nb6 12. Bf4 Rc8 13. Rfd1 Nh5 14. Be3 f5 15. Ne5 f4 16. Bc1 fxg3 17. fxg3 Be8 {1-0 (28) Von der Linden,A (1777)-Hobert,M (1646) Wuerzburg 2007}) 12. d5 $1 {[%emt 0:05:10]} exd5 {[%emt 0:06:37]} 13. e5 {[%emt 0:00:36]} ({Don't take} 13. Nd4 Bb7) 13... Ne8 {[%emt 0:05:45]} (13... Ne4 $16) 14. e6 {[%emt 0:02:04]} Nb8 {[%emt 0:07:12]} (14... Ndf6 {was necessary.}) 15. exf7+ $18 {[%emt 0:02:40]} Rxf7 {[%emt 0:00:10]} 16. Ne5 {[%emt 0:00:27]} Nf6 {[%emt 0:02:23]} 17. Nxf7 {[%emt 0:01:24]} Kxf7 {[%emt 0:00:08]} 18. Rd1 {[%emt 0:01:51]} Qd7 {[%emt 0:10:38]} 19. Be3 {[%emt 0:03:30] [#] And now Bd4 would win.} b4 {[%emt 0:02:59]} 20. Ne4 {[%emt 0:00:39]} Qd8 {[%emt 0:01:19]} (20... Kg8 $142 21. Nxf6+ Bxf6) 21. Ng5+ {[%emt 0:00:39]} Kg8 {[%emt 0:00:10]} 22. Bd4 {[%emt 0:00:23] Hoping for Bxf6.} g6 {[%emt 0:00:42]} 23. Qe2 {[%emt 0:00:15]} Qd7 {[%emt 0:00:44]} 24. Re1 {[%emt 0:00:26]} Bd8 {[%emt 0:00:31]} 25. Bh3 {[%emt 0:00:14]} Qd6 {[%emt 0:00:16]} 26. Be6+ {[%emt 0:00:28]} Kg7 {[%emt 0:00:28]} 27. Nf7 {[%emt 0:00:06] Qe3 would kill now.} Qf8 {[%emt 0:00:36]} 28. Nxd8 {[%emt 0:00:07]} Qxd8 {[%emt 0:00:06]} 29. Rac1 {[%emt 0:00:17]} a5 {[%emt 0:01:03]} 30. g4 {[%emt 0:00:32] Threatening mate with g5.} h6 {[%emt 0:00:25]} 31. Qe5 {[%emt 0:00:54] Strongly threatening g5.} Qe7 {[%emt 0:00:36]} 32. h4 {[%emt 0:00:42]} (32. g5 $142 hxg5 33. Qxg5 Nbd7 34. Bxd7 Qd6 35. Rxc6 Qxh2+ 36. Kxh2 Rh8+ 37. Kg2 Rf8 38. Re7+ Rf7 39. Qxf6+ Kh7 40. Qxg6#) 32... Nbd7 {[%emt 0:00:30] White is clearly winning.} 33. Bxd7 {[%emt 0:00:15] A strong pair of Bishops.} Qxe5 {[%emt 0:00:07]} 34. Bxe5 {[%emt 0:00:07]} Bxd7 {[%emt 0:00:19]} 35. Rxc7 {[%emt 0:00:06]} Rd8 {[%emt 0:00:40]} 36. g5 {[%emt 0:00:06] Black got outplayed after the opening.  Weighted Error Value: White=0.12 (very precise) /Black=1.11} 1-0

[Event "FIDE WY-U16 Olympiad 2022"]
[Site "Nakhchivan"]
[Date "2022.10.02"]
[Round "1.1"]
[White "Seyid, Huseyn"]
[Black "Hidalgo Diaz, Daniel"]
[Result "1/2-1/2"]
[ECO "D37"]
[WhiteElo "2097"]
[BlackElo "2315"]
[Annotator "TA"]
[PlyCount "57"]
[EventDate "2022.10.02"]
[EventType "team-tourn"]
[EventCountry "AZE"]
[SourceTitle "playchess.com"]
[Source "ChessBase"]
[SourceQuality "1"]
[WhiteTeam "Azerbaijan"]
[BlackTeam "Cuba"]
[WhiteTeamCountry "AZE"]
[BlackTeamCountry "CUB"]
[TimeControl "40/5400+30:1800+30"]

{[%evp 21,57,20,8,15,89,49,35,49,46,37,28,20,51,23,54,27,52,22,32,15,44,16,11,27,35,0,0,0,30,0,0,0,14,0,0,0,29,0]} 1. d4 d5 {[%emt 0:00:13]} 2. c4 {[%emt 0:00:08]} e6 {[%emt 0:00:07]} 3. Nf3 {[%emt 0:00:05]} Nf6 {[%emt 0:00:06]} 4. Nc3 {[%emt 0:00:03]} Be7 {[%emt 0:00:09]} 5. Bf4 {[%emt 0:00:05]} O-O {[%emt 0:00:22]} 6. e3 {[%emt 0:00:06]} b6 {[%emt 0:01:03]} 7. Bd3 {[%emt 0:00:05]} Bb7 {[%emt 0:00:07]} 8. cxd5 {[%emt 0:00:14]} exd5 {[%emt 0:00:11]} 9. O-O {[%emt 0:01:03]} c5 {[%emt 0:00:38]} 10. Rc1 {[%emt 0:03:47]} Nbd7 {[%emt 0:00:50]} 11. Ne5 {[%emt 0:05:48]} Nxe5 {[%emt 0:04:30]} 12. dxe5 {[%emt 0:01:29] D37: Queen's Gambit Declined: 5 Bf4.} Ne8 {[%emt 0:00:07]} (12... Ne4 $11 {remains equal.}) 13. Qc2 {[%emt 0:07:29] White is much more active.} h6 {[%emt 0:00:06]} 14. Rfd1 {[%emt 0:01:43] White is slightly better.} Nc7 {[%emt 0:00:10]} 15. Be4 {[%emt 0:04:06]} Qd7 $1 {[%emt 0:00:38]} 16. Rd2 {[%emt 0:18:59] [#]} Qe6 $146 {[%emt 0:03:41]} ({Predecessor:} 16... Rad8 17. Rcd1 Qe6 18. Bf3 Ba8 19. Bg3 g6 20. Ne2 g5 21. h3 Rfe8 22. Bh2 Bf8 {1-0 (55) Hassan,A (2359)-Ayyad,M (2092) Dubai 2003}) 17. Bf3 {[%emt 0:06:53]} b5 {[%emt 0:02:24]} 18. Rcd1 {[%emt 0:04:03][%cal Rf3d5]} Rfd8 {[%emt 0:00:29]} 19. h3 {[%emt 0:01:32]} a5 {[%emt 0:11:11]} 20. Ne2 {[%emt 0:11:03]} Qb6 {[%emt 0:10:37]} 21. Bg3 {[%emt 0:04:46]} c4 $1 {[%emt 0:11:24]} 22. Nf4 {[%emt 0:04:00]} Bb4 {[%emt 0:00:12]} 23. Rd4 {[%emt 0:01:54]} Bc5 $1 {[%emt 0:12:25]} (23... Ne6 24. Nxd5 Nxd4 25. Rxd4 Bxd5 26. Bxd5 $14) 24. R4d2 {[%emt 0:00:41]} Bb4 {[%emt 0:06:55]} 25. Rd4 {[%emt 0:00:13]} Bc5 $1 {[%emt 0:00:13]} ({Much less strong is} 25... Ne6 26. Nxd5 Nxd4 27. Rxd4 Bxd5 28. Bxd5 $14) 26. R4d2 {[%emt 0:00:13]} Bb4 {[%emt 0:00:13]} 27. Rd4 {[%emt 0:00:01]} Bc5 $1 {[%emt 0:00:10]} ({But not} 27... Ne6 28. Nxd5 Nxd4 29. Rxd4 Bxd5 30. Bxd5 $14) 28. R4d2 {[%emt 0:00:04]} Bb4 {[%emt 0:00:08]} 29. Rd4 {[%emt 0:00:02] Weighted Error Value: White=0.17 (very precise) /Black=0.08 (flawless)} 1/2-1/2

[Event "FIDE WY-U16 Olympiad 2022"]
[Site "Nakhchivan"]
[Date "2022.10.02"]
[Round "1.2"]
[White "Gonzalez Soler, Leduard Manuel"]
[Black "Hasanli, Rza"]
[Result "1-0"]
[ECO "A45"]
[WhiteElo "2251"]
[BlackElo "1566"]
[Annotator "TA"]
[PlyCount "92"]
[EventDate "2022.10.02"]
[EventType "team-tourn"]
[EventCountry "AZE"]
[SourceTitle "playchess.com"]
[Source "ChessBase"]
[SourceQuality "1"]
[WhiteTeam "Cuba"]
[BlackTeam "Azerbaijan"]
[WhiteTeamCountry "CUB"]
[BlackTeamCountry "AZE"]
[TimeControl "40/5400+30:1800+30"]

{[%evp 9,92,8,58,70,164,154,181,183,191,75,120,54,128,116,143,103,102,104,108,112,106,116,95,110,113,101,120,68,85,80,80,79,87,99,158,105,118,110,215,88,93,89,117,127,117,132,138,132,120,79,92,101,136,136,136,136,142,128,168,164,181,163,218,218,218,218,218,193,208,203,197,193,169,128,128,128,218,152,218,218,2644,1656,2960,1774,12841]} 1. d4 {[%emt 0:00:16]} Nf6 {[%emt 0:00:16]} 2. Bg5 {[%emt 0:00:16]} d5 {[%emt 0:00:27]} 3. Bxf6 {[%emt 0:00:22]} gxf6 {[%emt 0:00:10]} 4. e3 {[%emt 0:00:04]} c5 {[%emt 0:02:12]} 5. dxc5 {[%emt 0:00:05]} e5 {[%emt 0:00:37] [#]} (5... Nc6 $11) 6. Qf3 $146 {[%emt 0:00:48] D00: 1 d4 d5: Unusual lines.} ({Predecessor:} 6. c4 d4 7. exd4 exd4 8. Nf3 Bxc5 9. Bd3 Nc6 10. O-O Kf8 11. Qc1 h6 12. Qf4 Qd6 13. Qxd6+ Bxd6 {½-½ (56) Koellner,R (2440)-Clarke,B (2445) Chess.com INT 2022}) 6... Bxc5 {[%emt 0:13:21]} (6... Nc6 $14) 7. Nc3 $18 {[%emt 0:00:15]} d4 {[%emt 0:00:42]} 8. O-O-O {[%emt 0:02:59] White is clearly better.} Nc6 {[%emt 0:05:34]} 9. Nge2 {[%emt 0:09:25]} (9. Bb5 $18 {is more deadly.}) 9... h5 {[%emt 0:07:25]} 10. h3 {[%emt 0:05:04] Prevents Bg4.} ({White should play} 10. exd4 $1 $16 Bxd4 11. Nxd4 Nxd4 12. Qe3) 10... f5 {[%emt 0:19:36]} (10... Be6 $1 $14) 11. exd4 $16 {[%emt 0:02:12]} exd4 {[%emt 0:00:06]} 12. Nd5 {[%emt 0:18:11]} Be6 {[%emt 0:17:07]} 13. Nef4 {[%emt 0:01:01]} Bxd5 {[%emt 0:01:53]} 14. Nxd5 {[%emt 0:01:34]} Qg5+ {[%emt 0:00:19]} 15. Kb1 {[%emt 0:01:25] White is more active.} O-O-O {[%emt 0:00:28]} 16. Bd3 $36 {[%emt 0:05:02][%mdl 2048] White is on the roll.} Kb8 {[%emt 0:05:35]} 17. Bxf5 {[%emt 0:13:39]} h4 {[%emt 0:01:35]} 18. g4 {[%emt 0:09:06]} (18. Qf4+ $16 Qxf4 19. Nxf4) 18... hxg3 $1 $14 {[%emt 0:00:53]} 19. fxg3 {[%emt 0:00:08]} Ne5 {[%emt 0:10:04]} 20. Qf4 {[%emt 0:11:22]} Qg7 {[%emt 0:01:55]} 21. Be4 {[%emt 0:00:45]} Bd6 {[%emt 0:01:15]} (21... f5 $142) 22. Qf5 {[%emt 0:03:31]} ({Don't blunder} 22. Rxd4 $2 Nc6 23. Qf6 Qxf6 24. Nxf6 Nxd4 $19) (22. g4 $142) 22... Qxg3 $16 {[%emt 0:01:22]} 23. Rxd4 {[%emt 0:01:12]} Rhg8 {[%emt 0:00:36] [#]} (23... Bc5 $16 24. Rdd1 Nc4) 24. Rhd1 {[%emt 0:08:14]} (24. Nf6 $1 $18 {[%cal Rf6g8] has better winning chances.} Qe3 25. c3 (25. Rdd1 Rg3 $18) 25... Rg1+ 26. Rxg1 (26. Rd1 Rxh1 27. Bxh1 Qe2 $16) 26... Qxg1+ 27. Kc2) 24... Bc5 {[%emt 0:02:52]} 25. R4d2 {[%emt 0:00:06]} Nc4 {[%emt 0:01:08]} 26. Rg2 {[%emt 0:00:18]} Qe5 {[%emt 0:00:20]} 27. Qxe5+ {[%emt 0:00:36]} Nxe5 {[%emt 0:00:08]} 28. Rxg8 {[%emt 0:00:56]} Rxg8 {[%emt 0:00:10]} 29. b4 {[%emt 0:02:26]} Bf2 {[%emt 0:01:44]} 30. Nf6 {[%emt 0:01:31]} Rg1 {[%emt 0:00:47]} 31. Rxg1 {[%emt 0:00:10]} Bxg1 {[%emt 0:00:07][%mdl 4096] Endgame KBN-KBN} 32. h4 {[%emt 0:01:13][%cal Bh3h4,Bh4h5][%mdl 32]} Bd4 {[%emt 0:00:33]} 33. Nd5 {[%emt 0:00:40]} Nd7 {[%emt 0:01:07]} 34. c3 {[%emt 0:00:16]} Be5 {[%emt 0:00:50]} 35. Kc2 {[%emt 0:00:55]} Nf6 {[%emt 0:00:20]} (35... Bg7 $142 36. h5 Bh6) 36. Nxf6 $18 {[%emt 0:00:45]} Bxf6 {[%emt 0:00:07] KB-KB} 37. h5 {[%emt 0:00:02]} Bg7 {[%emt 0:00:47]} 38. Kd3 {[%emt 0:00:26]} Kc7 {[%emt 0:00:48]} 39. Bd5 {[%emt 0:00:55]} f5 {[%emt 0:00:27] [#]} 40. c4 $1 {[%emt 0:00:17]} b6 {[%emt 0:00:35]} 41. Be6 {[%emt 0:30:29]} f4 {[%emt 0:31:42]} 42. Ke4 {[%emt 0:00:11]} Bh6 {[%emt 0:00:45]} (42... f3 $16 43. Kxf3 Bf8) 43. Bg4 {[%emt 0:01:51]} a6 {[%emt 0:02:27]} (43... Kd8 $16 44. Kf5 Bg7 45. Kxf4 Ke8) 44. Kf5 {[%emt 0:00:37] Kg6 is the strong threat.} Kc6 $2 {[%emt 0:00:00]} (44... Bg7 45. Kxf4 Kd6) 45. Bf3+ {[%emt 0:00:00]} Kd7 {[%emt 0:00:00]} 46. c5 {[%emt 0:00:00] aiming for Kg6.} b5 {[%emt 0:00:00] Weighted Error Value: White=0.19 (very precise) /Black=0.25 (precise)} 1-0

[Event "FIDE WY-U16 Olympiad 2022"]
[Site "Nakhchivan"]
[Date "2022.10.02"]
[Round "1.2"]
[White "Khamdamova, Afruza"]
[Black "Mahdavi, Reza"]
[Result "1/2-1/2"]
[ECO "B85"]
[WhiteElo "2040"]
[BlackElo "2292"]
[Annotator "TA"]
[PlyCount "109"]
[EventDate "2022.10.02"]
[EventType "team-tourn"]
[EventCountry "AZE"]
[SourceTitle "playchess.com"]
[Source "ChessBase"]
[SourceQuality "1"]
[WhiteTeam "Uzbekistan"]
[BlackTeam "Iran"]
[WhiteTeamCountry "UZB"]
[BlackTeamCountry "IRI"]
[TimeControl "40/5400+30:1800+30"]

{[%evp 26,109,25,-6,4,0,25,16,28,0,0,0,7,-19,-19,-28,-17,-39,0,0,30,30,30,30,32,34,25,0,37,0,0,0,0,0,6,0,0,0,0,0,0,0,0,-17,-15,-53,-32,-50,-52,-62,-26,-49,0,-15,-11,-17,0,-34,-29,-32,-50,-60,-16,-14,-12,-16,-16,-16,-16,-60,-61,-78,-78,-75,-32,-39,0,0,0,0,0,0,0,0,0,0]} 1. e4 {[%emt 0:00:02]} c5 {[%emt 0:00:06]} 2. Nf3 {[%emt 0:00:06]} e6 {[%emt 0:00:11]} 3. d4 {[%emt 0:00:08]} cxd4 {[%emt 0:00:13]} 4. Nxd4 {[%emt 0:00:07]} Nc6 {[%emt 0:00:06]} 5. Nc3 {[%emt 0:00:15]} Qc7 {[%emt 0:00:21]} 6. Be2 {[%emt 0:00:14]} a6 {[%emt 0:00:08]} 7. O-O {[%emt 0:00:08]} Nf6 {[%emt 0:00:05]} 8. Be3 {[%emt 0:00:05]} Be7 {[%emt 0:00:07]} 9. f4 {[%emt 0:00:08]} d6 {[%emt 0:00:09]} 10. Qe1 {[%emt 0:00:09]} O-O {[%emt 0:00:24]} 11. Qg3 {[%emt 0:00:07]} Nxd4 {[%emt 0:00:32]} 12. Bxd4 {[%emt 0:00:10]} b5 {[%emt 0:00:05]} 13. a3 {[%emt 0:00:25]} Bb7 {[%emt 0:00:08]} 14. Bd3 {[%emt 0:00:37]} Rad8 {[%emt 0:00:47] B85: Sicilian Scheveningen: 6 Be2 a6, lines with early Be3.} 15. Rae1 {[%emt 0:00:24]} Rd7 {[%emt 0:00:07]} 16. Kh1 {[%emt 0:01:44]} Re8 {[%emt 0:01:47]} 17. e5 {[%emt 0:20:53]} dxe5 {[%emt 0:00:08]} 18. Bxe5 {[%emt 0:00:04]} Qd8 {[%emt 0:00:06]} 19. Qh3 {[%emt 0:01:59]} g6 {[%emt 0:04:00] Inhibits f5.} 20. Re3 {[%emt 0:07:16][%cal Of4f5]} (20. Qh6 Nh5 21. Re3 Bf8 22. Qxh5 (22. Qg5 $2 f6 $19) 22... gxh5 $17) 20... Bc5 {[%emt 0:25:26]} 21. Rg3 {[%emt 0:06:19] [#]} Bd4 $146 {[%emt 0:00:16]} ({Predecessor:} 21... Bf8 22. f5 exf5 23. Qxf5 Nd5 24. Ne4 Re6 25. Ng5 Rxe5 26. Qxe5 Bd6 27. Qe1 Bxg3 28. Qxg3 {½-½ (50) Valsecchi,A (2298)-Mogranzini,R (2423) Saint Vincent 2008}) 22. Qh6 {[%emt 0:05:07]} Qe7 {[%emt 0:03:24]} 23. Ne2 {[%emt 0:12:29]} Bb6 {[%emt 0:15:17]} 24. Rh3 {[%emt 0:16:53] [#] Hoping for Ng3.} Bd8 $1 {[%emt 0:00:37]} 25. Bxf6 {[%emt 0:09:34]} ({Much weaker is} 25. f5 exf5 26. Bxf6 Qxf6 27. Qxh7+ Kf8 $17) 25... Qxf6 {[%emt 0:00:07]} 26. Qxh7+ {[%emt 0:00:03]} Kf8 {[%emt 0:00:08]} 27. Nc3 {[%emt 0:04:57]} Qg7 {[%emt 0:12:37]} 28. Qh8+ {[%emt 0:01:55]} Qxh8 {[%emt 0:00:07]} 29. Rxh8+ {[%emt 0:00:05]} Ke7 {[%emt 0:00:19]} 30. Rxe8+ {[%emt 0:00:03]} Kxe8 {[%emt 0:00:03]} 31. Be4 {[%emt 0:00:06]} Bxe4 {[%emt 0:00:05]} 32. Nxe4 $11 {[%emt 0:00:04][%mdl 4096] Endgame KRB-KRN} f5 {[%emt 0:03:25]} 33. Nc5 {[%emt 0:01:47][%csl LRa6,LRd7,LRe6]} Rd2 {[%emt 0:00:07]} 34. Rc1 {[%emt 0:01:11]} Bf6 {[%emt 0:00:52]} 35. Nd3 {[%emt 0:02:53]} Ke7 {[%emt 0:02:11]} 36. b3 {[%emt 0:03:26]} g5 {[%emt 0:02:05]} 37. g3 {[%emt 0:01:21]} gxf4 {[%emt 0:01:24]} 38. gxf4 {[%emt 0:00:07]} Bd4 {[%emt 0:01:16]} (38... Kd6 $15) 39. a4 {[%emt 0:03:06]} bxa4 {[%emt 0:00:51]} 40. bxa4 {[%emt 0:00:06]} a5 {[%emt 0:00:07]} 41. Rb1 {[%emt 0:19:37]} Rxc2 {[%emt 0:01:37]} 42. Rb5 {[%emt 0:00:07]} Kf6 {[%emt 0:13:20]} 43. Rxa5 {[%emt 0:02:46]} Rc3 {[%emt 0:00:06]} 44. Ne5 {[%emt 0:04:20]} Be3 {[%emt 0:01:38]} 45. Nd7+ {[%emt 0:04:17]} Kf7 {[%emt 0:04:15]} 46. Ne5+ {[%emt 0:00:07]} Kg7 {[%emt 0:00:11]} 47. Rb5 {[%emt 0:02:12]} ({Don't play} 47. Ra6 Bxf4 48. Nc6 (48. Rxe6 $2 Re3 $19) 48... Rd3 $17) 47... Bxf4 {[%emt 0:00:25]} 48. a5 $1 {[%emt 0:00:33]} Kf6 {[%emt 0:01:00]} 49. Nd7+ {[%emt 0:00:44]} Kg5 {[%emt 0:00:07] ...Rc2 is the strong threat.} 50. Kg2 {[%emt 0:01:35]} Ra3 {[%emt 0:01:33]} 51. Nc5 {[%emt 0:00:21] The position is equal.} Kg4 {[%emt 0:02:09] [#] And now ...e5 would win.} 52. Nxe6 {[%emt 0:00:38][%cal Oh2h3] Strongly threatening h3+!} Ra2+ {[%emt 0:00:04]} 53. Kf1 {[%emt 0:00:04]} Be3 {[%emt 0:00:04]} 54. h3+ {[%emt 0:00:28]} Kxh3 {[%emt 0:00:53]} 55. Rxf5 {[%emt 0:00:04] Weighted Error Value: White=0.11 (very precise) /Black=0.11 (very precise)} 1/2-1/2

[Event "FIDE WY-U16 Olympiad 2022"]
[Site "Nakhchivan"]
[Date "2022.10.02"]
[Round "1.3"]
[White "Movahed, Sina"]
[Black "Abdukhakimov, Akbarali"]
[Result "1-0"]
[ECO "B51"]
[WhiteElo "2345"]
[BlackElo "1815"]
[Annotator "TA"]
[PlyCount "137"]
[EventDate "2022.10.02"]
[EventType "team-tourn"]
[EventCountry "AZE"]
[SourceTitle "playchess.com"]
[Source "ChessBase"]
[SourceQuality "1"]
[WhiteTeam "Iran"]
[BlackTeam "Uzbekistan"]
[WhiteTeamCountry "IRI"]
[BlackTeamCountry "UZB"]
[TimeControl "40/5400+30:1800+30"]

{[%evp 9,137,10,9,7,0,19,24,23,27,23,24,22,22,22,20,23,38,36,71,59,58,59,64,62,71,59,49,57,94,74,126,129,118,80,80,83,224,216,224,222,222,223,220,222,219,223,216,214,229,171,244,228,322,297,489,481,511,395,402,401,394,401,490,459,432,372,457,457,442,437,396,405,364,373,692,576,521,262,257,255,255,255,343,265,300,180,180,180,180,0,217,180,180,180,180,180,180,142,142,142,142,110,272,279,321,364,322,180,180,180,1727,1710,1633,1585,1604,1379,1452,1552,1460,1331,1112,1097,2091,768,6075,5189,29977,29977,29973,11272]} 1. e4 {[%emt 0:00:20]} c5 {[%emt 0:00:36]} 2. Nf3 {[%emt 0:00:06]} d6 {[%emt 0:00:08]} 3. Bb5+ {[%emt 0:00:44]} Nd7 {[%emt 0:00:32]} 4. a4 {[%emt 0:00:33]} Ngf6 {[%emt 0:01:12]} 5. Nc3 {[%emt 0:00:07]} a6 {[%emt 0:02:09]} 6. Be2 {[%emt 0:00:09] B51: Sicilian: Moscow Variation (3 Bb5+) without 3...Bd7.} e6 {[%emt 0:00:59]} 7. O-O {[%emt 0:00:19]} Be7 {[%emt 0:02:26]} 8. d4 {[%emt 0:00:30] White has an edge.} cxd4 {[%emt 0:00:39]} 9. Qxd4 {[%emt 0:00:10]} O-O {[%emt 0:00:34]} 10. Rd1 {[%emt 0:00:59]} Qc7 {[%emt 0:03:41]} 11. a5 {[%emt 0:11:16]} Ne5 {[%emt 0:14:55] [#]} 12. Be3 $146 {[%emt 0:05:21]} ({Predecessor:} 12. Nxe5 dxe5 13. Qc4 Qxc4 14. Bxc4 Bd7 15. Be3 Rac8 16. Bd3 Bc5 17. Bxc5 Rxc5 18. f3 {½-½ (107) Buksa,N (2401)-Dzagnidze,N (2531) Warsaw 2021}) 12... Nxf3+ {[%emt 0:26:47]} 13. Bxf3 {[%emt 0:00:19]} e5 {[%emt 0:04:05]} 14. Qd2 {[%emt 0:03:10]} Be6 {[%emt 0:01:31]} 15. Na4 {[%emt 0:01:08]} Qc6 {[%emt 0:07:49]} 16. Nb6 {[%emt 0:05:14]} Rae8 {[%emt 0:00:15]} 17. Ra4 {[%emt 0:03:08]} Nd7 {[%emt 0:12:55]} 18. Rb4 {[%emt 0:01:04]} Nc5 {[%emt 0:03:32]} 19. b3 {[%emt 0:04:56]} Rd8 {[%emt 0:04:00]} (19... Rb8 $142) 20. Nd5 $16 {[%emt 0:01:13]} Bxd5 {[%emt 0:00:12]} 21. Qxd5 {[%emt 0:00:19]} ({Don't do} 21. exd5 Qc8 $14) 21... Qxd5 {[%emt 0:01:54]} 22. Rxd5 {[%emt 0:00:12]} Rc8 {[%emt 0:00:06]} (22... Rb8 $16) 23. Bxc5 $18 {[%emt 0:04:29]} Rxc5 {[%emt 0:00:26]} 24. Rxb7 {[%emt 0:00:13]} Bd8 {[%emt 0:02:30]} 25. b4 {[%emt 0:01:48]} Rxc2 {[%emt 0:01:03]} 26. Rxd6 {[%emt 0:00:26]} Rb2 {[%emt 0:02:40]} 27. Rbd7 {[%emt 0:05:44]} Bg5 {[%emt 0:00:17] [#]} 28. g3 $1 {[%emt 0:01:26]} Rxb4 {[%emt 0:04:14]} 29. Rxa6 {[%emt 0:00:12]} Ra4 {[%emt 0:01:20]} (29... Rb1+ $142 30. Kg2 Rb2) 30. h4 {[%emt 0:02:38]} Bf6 {[%emt 0:01:02]} (30... Bd8 $142 31. Rd5 Be7 32. Rxe5 Bb4) 31. Raa7 {[%emt 0:00:17] a6 is the strong threat.} g6 $2 {[%emt 0:00:34]} (31... Bd8 32. Rd5 g6 33. Rxe5 Bf6) 32. a6 {[%emt 0:00:24]} Bd8 {[%emt 0:00:37]} 33. Rd6 {[%emt 0:02:25] Against Bb6} Ba5 {[%emt 0:00:06]} 34. Bd1 {[%emt 0:01:19]} Ra1 {[%emt 0:00:53]} 35. Kg2 {[%emt 0:00:39]} Bb4 {[%emt 0:00:26]} 36. Rd5 {[%emt 0:00:23]} Bc3 {[%emt 0:00:04]} 37. Be2 {[%emt 0:03:35]} Bd4 {[%emt 0:00:17]} 38. Rc7 {[%emt 0:00:14]} Ra2 {[%emt 0:01:07]} 39. Bc4 {[%emt 0:00:11]} Rxf2+ {[%emt 0:00:26]} 40. Kh3 {[%emt 0:00:06]} Rc2 {[%emt 0:00:51]} 41. Rdd7 {[%emt 0:30:36]} Bb6 $2 {[%emt 0:30:37]} (41... Kh8 42. Bd5 Rxc7 43. Rxc7 h5) 42. Bxf7+ {[%emt 0:02:35]} Rxf7 {[%emt 0:00:18]} 43. Rxf7 {[%emt 0:00:06]} Bxc7 {[%emt 0:00:31]} 44. a7 {[%emt 0:00:05] Rd7 would kill now.} Kxf7 {[%emt 0:00:23]} 45. a8=Q {[%emt 0:00:07][%mdl 4096] Endgame Inhibits Ra2. KQ-KRB} h5 {[%emt 0:00:00]} 46. Qc8 {[%emt 0:00:00]} Rc5 {[%emt 0:00:00]} 47. Qd7+ {[%emt 0:00:00]} Kf6 {[%emt 0:00:00]} 48. Qd2 {[%emt 0:00:00] Inhibits Rc2.} Rc4 {[%emt 0:00:00]} 49. Qd7 $2 {[%emt 0:00:00]} (49. Kh2 $18) 49... Rc2 $2 {[%emt 0:00:00]} (49... Rc5 $1 $11 50. Qd2 Kg7) 50. Qd3 {[%emt 0:00:00]} Rc6 {[%emt 0:00:00]} 51. g4 {[%emt 0:00:00]} hxg4+ {[%emt 0:00:00]} 52. Kxg4 {[%emt 0:00:00]} Bb6 {[%emt 0:00:00]} 53. Qd7 {[%emt 0:00:00]} Re6 {[%emt 0:00:00]} 54. Qc8 {[%emt 0:00:00][%cal Rc8f8] White is more active.} Kf7 {[%emt 0:00:00] Prevents Qf8+.} 55. Qh8 {[%emt 0:00:00]} Rf6 $2 {[%emt 0:00:56]} (55... Bd4 $16 56. Qh7+ Ke8) 56. Qh7+ {[%emt 0:00:00]} Ke6 {[%emt 0:00:29]} 57. Qb7 {[%emt 0:00:00]} Bd4 {[%emt 0:00:32]} 58. Qb3+ {[%emt 0:00:00]} (58. Qc7 $142) 58... Ke7 {[%emt 0:01:27] [#]} 59. Kg5 $1 {[%emt 0:00:00] Threatening mate with Qb7+.} Rf4 $2 {[%emt 0:01:36]} (59... Re6 60. Qa3+ Kd7) 60. Kxg6 {[%emt 0:00:00] aiming for h5.} Rg4+ {[%emt 0:01:45]} 61. Kf5 {[%emt 0:00:00]} Rf4+ {[%emt 0:00:28]} 62. Kg5 {[%emt 0:00:00] White threatens h5 and mate.} Rf2 {[%emt 0:00:19]} 63. h5 {[%emt 0:00:00] And now Qg3 would win.} Rg2+ {[%emt 0:00:37]} 64. Kh6 {[%emt 0:00:00]} Rg1 {[%emt 0:00:52]} 65. Kh7 {[%emt 0:00:00]} Rg2 {[%emt 0:01:47]} 66. h6 {[%emt 0:00:00]} (66. Qa3+ $142 Ke8 67. h6) 66... Rg1 {[%emt 0:00:31] [#]} 67. Qg8 $3 {[%emt 0:00:00][%cal Og8g1][%mdl 512] Intending Qxg1! and mate.} Kf6 {[%emt 0:00:30] [#]} (67... Rh1 68. Qg7+) 68. Qxg1 $3 {[%emt 0:00:00][%mdl 512]} Bxg1 {[%emt 0:00:15]} 69. Kg8 {[%emt 0:00:00] Weighted Error Value: White=0.29 (precise) /Black=0.37} 1-0